{"text_format":"3","workbook":"xlsx","n_sheets":2,"sheets":["Factură","Configurare firmă"],"not_rendered":{"images":1,"defined_names":27},"read":"whole","date_system":"1900"}

{"sheet":"Factură","index":0,"n_rows":35,"n_cols":7,"rows_kept":35,"merged":[[1,3,2,4],[3,3,3,4],[4,3,4,4],[5,3,5,4],[23,1,23,3],[24,1,24,3],[25,1,25,3],[26,1,26,3]]}
[null,"FACTURĂ","0005"]
[null,{"$f":"TODAY()","v":"2022-04-06"},null,{"$f":"TotalFactură","v":79.65},null," ","Configurare firmă"]
[null,"DATA SCADENTĂ A PLĂȚII:",{"$f":"TODAY()+15","v":"2022-04-21"},null,null," "]
[null,"ECATERINA CHIRILĂ",null,"ADVENTURE WORKS"]
[null,"Fabrikam, Inc.",null,"Bd. Constantin Brâncoveanu 7-9"]
[null,"Strada Aleea Sinaia 10",null,"București, RO 041432"]
[null,"Ploiești, PH, 301102"]
[null,"CANTITATE","DETALII","PREȚ UNITAR","TOTAL LINIE"]
[null,2,"Widgeturi",14.95,{"$f":"IFERROR(DetaliiFactură[[#This Row],[PREȚ UNITAR]]*DetaliiFactură[[#This Row],[CANTITATE]],\"\")","v":{"v":29.9,"d":"29.90"}}]
[null,5,"Șaibe",9.95,{"$f":"IFERROR(DetaliiFactură[[#This Row],[PREȚ UNITAR]]*DetaliiFactură[[#This Row],[CANTITATE]],\"\")","v":49.75}]
[{"$nulls":4},{"$f":"IFERROR(DetaliiFactură[[#This Row],[PREȚ UNITAR]]*DetaliiFactură[[#This Row],[CANTITATE]],\"\")","v":0}]
[{"$nulls":4},{"$f":"IFERROR(DetaliiFactură[[#This Row],[PREȚ UNITAR]]*DetaliiFactură[[#This Row],[CANTITATE]],\"\")","v":0}]
[{"$nulls":4},{"$f":"IFERROR(DetaliiFactură[[#This Row],[PREȚ UNITAR]]*DetaliiFactură[[#This Row],[CANTITATE]],\"\")","v":0}]
[{"$nulls":4},{"$f":"IFERROR(DetaliiFactură[[#This Row],[PREȚ UNITAR]]*DetaliiFactură[[#This Row],[CANTITATE]],\"\")","v":0}]
[{"$nulls":4},{"$f":"IFERROR(DetaliiFactură[[#This Row],[PREȚ UNITAR]]*DetaliiFactură[[#This Row],[CANTITATE]],\"\")","v":0}]
[{"$nulls":4},{"$f":"IFERROR(DetaliiFactură[[#This Row],[PREȚ UNITAR]]*DetaliiFactură[[#This Row],[CANTITATE]],\"\")","v":0}]
[{"$nulls":4},{"$f":"IFERROR(DetaliiFactură[[#This Row],[PREȚ UNITAR]]*DetaliiFactură[[#This Row],[CANTITATE]],\"\")","v":0}]
[{"$nulls":4},{"$f":"IFERROR(DetaliiFactură[[#This Row],[PREȚ UNITAR]]*DetaliiFactură[[#This Row],[CANTITATE]],\"\")","v":0}]
[{"$nulls":4},{"$f":"IFERROR(DetaliiFactură[[#This Row],[PREȚ UNITAR]]*DetaliiFactură[[#This Row],[CANTITATE]],\"\")","v":0}]
[{"$nulls":4},{"$f":"IFERROR(DetaliiFactură[[#This Row],[PREȚ UNITAR]]*DetaliiFactură[[#This Row],[CANTITATE]],\"\")","v":0}]
[{"$nulls":4},{"$f":"IFERROR(DetaliiFactură[[#This Row],[PREȚ UNITAR]]*DetaliiFactură[[#This Row],[CANTITATE]],\"\")","v":0}]
[{"$nulls":4},{"$f":"IFERROR(DetaliiFactură[[#This Row],[PREȚ UNITAR]]*DetaliiFactură[[#This Row],[CANTITATE]],\"\")","v":0}]
[{"$nulls":4},{"$f":"IFERROR(DetaliiFactură[[#This Row],[PREȚ UNITAR]]*DetaliiFactură[[#This Row],[CANTITATE]],\"\")","v":0}]
[null,"Reducere"]
[null,"Total net",null,null,{"$f":"SUM(DetaliiFactură[TOTAL LINIE])-E24","v":{"v":79.65,"d":"79.65 lei"}}]
[null,"Taxă"]
[null,{"$f":"REPT(ConfigurareFirmă_AbreviereaMonedeiDvs,LEN(ConfigurareFirmă_AbreviereaMonedeiDvs)>0) & \" TOTAL\"","v":"lei TOTAL"},null,null,{"$f":"IFERROR(E25+E26, \"\")","v":{"v":79.65,"d":"79.65 lei"}}]
[null,"DETALII DESPRE PLATĂ",null,null,"ALTE INFORMAȚII"]
[null,"Numele beneficiarului:",{"$f":" ConfigurareFirmă_NumeBeneficiarBancă","v":"Adventure Works"},null,{"$f":"IFERROR(ConfigurareFirmă_NumeleDvs,\"\")","v":"Emil Antonescu"}]
[null,"Numele băncii:",{"$f":"ConfigurareFirmă_NumeBancă","v":"Woodgrove Bank"},null,{"$f":"IFERROR(\"Telefon: \" & ConfigurareFirmă_NumărulDvsDeTelefon,\"\")","v":"Telefon: 425-555-0150"}]
[null,"Adresa băncii:",{"$f":"ConfigurareFirmă_AdresăBancă","v":"Str. Toamnei, București, RO 020701"},null,{"$f":"IFERROR(\"Facsimil: \" & ConfigurareFirmă_FaxulDvs,\"\")","v":"Facsimil: 425-555-0151"}]
[null,"Numărul contului:",{"$f":"ConfigurareFirmă_ContBancar","v":1234567},null,{"$f":"IFERROR(ConfigurareFirmă_AdresaURL,\"\")","v":"Adventure-Works.com"}]
[null,"Număr de rutare (cod SWIFT)",{"$f":"ConfigurareFirmă_RutareBancă","v":9876543210},null,{"$f":"IFERROR(ConfigurareFirmă_EmailulDvs,\"\")","v":"Contabilitate@Adventure-Works.com"}]
[null,"Referință de plată:",{"$f":"AfișareNumărFactură","v":"0005"},null,{"$f":"IFERROR(IF(LEN(Client_PO),\"Contract/Comandă de achiziție: \" & Client_PO,\"\"),\"\")","v":""}]
[null,{"$f":"UPPER(\"Plata trebuie efectuată prin transfer bancar sau cec în contul \" & ConfigurareFirmă_PlatăCuCec & \".\")","v":"PLATA TREBUIE EFECTUATĂ PRIN TRANSFER BANCAR SAU CEC ÎN CONTUL ADVENTURE WORKS."}]

{"sheet":"Configurare firmă","index":1,"n_rows":20,"n_cols":5,"rows_kept":20}
[null,"CONFIGURARE FIRMĂ"]
[null,"DETALII FIRMĂ CARE FACTUREAZĂ","VALOARE",null,"Factura"]
[null,"Nume","Emil Antonescu"]
[null,"Numele firmei","ADVENTURE WORKS"]
[null,"Linie de adresă 1","Bd. Constantin Brâncoveanu 7-9"]
[null,"Linie de adresă 2","București, RO 041432"]
[null,"Linie de adresă 3"]
[null,"Linie de adresă 4"]
[null,"Linie de adresă 5"]
[null,"Telefon","425-555-0150"]
[null,"Facsimil","425-555-0151"]
[null,"Site web","Adventure-Works.com"]
[null,"E-mail","Contabilitate@Adventure-Works.com"]
[null,"Abreviere monedă","lei"]
[null,"Numele beneficiarului pentru transferul bancar","Adventure Works"]
[null,"Numele băncii","Woodgrove Bank"]
[null,"Adresa băncii","Str. Toamnei, București, RO 020701"]
[null,"Numărul contului",1234567]
[null,"Număr de rutare (cod SWIFT)",9876543210]
[null,"Cecurile se plătesc către","Adventure Works"]